[Event "Live Chess"]
[Site "Chess.com"]
[Date "2024.06.02"]
[Round "-"]
[White "ProfPoisson"]
[Black "Queensandpawns"]
[Result "0-1"]
[WhiteElo "1333"]
[BlackElo "2256"]
[TimeControl "300"]
[EndTime "4:35:11 PDT"]
[Termination "Queensandpawns won by checkmate"]

1. e4 {[%clk 0:04:55.3]} 1... e5 {[%clk 0:04:59.9]} 2. Nf3 {[%clk 0:04:52.7]}
2... Nf6 {[%clk 0:04:59.8]} 3. Nxe5 {[%clk 0:04:50.4]} 3... Nc6 {[%clk
0:04:59.1]} 4. Nxc6 {[%clk 0:04:49.4]} 4... dxc6 {[%clk 0:04:59]} 5. d3 {[%clk
0:04:47.9]} 5... Bc5 {[%clk 0:04:57.6]} 6. Be2 {[%clk 0:04:47.3]} 6... h5 {[%clk
0:04:56.7]} 7. h3 {[%clk 0:04:46.2]} 7... Be6 {[%clk 0:04:54.8]} 8. c3 {[%clk
0:04:32]} 8... Bb6 {[%clk 0:04:53.2]} 9. a4 {[%clk 0:04:24.2]} 9... a5 {[%clk
0:04:39.6]} 10. Bg5 {[%clk 0:04:21.1]} 10... Qd7 {[%clk 0:04:28.6]} 11. Nd2
{[%clk 0:04:13.2]} 11... O-O-O {[%clk 0:04:25.9]} 12. Nc4 {[%clk 0:04:06.1]}
12... Bxc4 {[%clk 0:04:24]} 13. dxc4 {[%clk 0:04:03.9]} 13... Qe6 {[%clk
0:04:23.3]} 14. Qc2 {[%clk 0:03:58.5]} 14... Bxf2+ {[%clk 0:04:21.9]} 15. Kxf2
{[%clk 0:03:54.5]} 15... Nxe4+ {[%clk 0:04:21.1]} 16. Kg1 {[%clk 0:03:47.5]}
16... Nxg5 {[%clk 0:04:18.2]} 17. Rd1 {[%clk 0:03:31.6]} 17... Qe3+ {[%clk
0:04:15]} 18. Kf1 {[%clk 0:03:21.3]} 18... Ne4 {[%clk 0:04:10.5]} 19. Rxd8+
{[%clk 0:02:59.5]} 19... Rxd8 {[%clk 0:04:10.4]} 20. Bf3 {[%clk 0:02:52]} 20...
Rd2 {[%clk 0:04:08.5]} 21. Qxd2 {[%clk 0:02:42.7]} 21... Nxd2# {[%clk
0:04:06.9]} 0-1

[Event "Live Chess"]
[Site "Chess.com"]
[Date "2024.06.02"]
[Round "-"]
[White "WelshTiger"]
[Black "friarnator"]
[Result "1/2-1/2"]
[WhiteElo "2436"]
[BlackElo "2193"]
[TimeControl "300"]
[EndTime "4:35:18 PDT"]
[Termination "Game drawn by repetition"]

1. e4 {[%clk 0:04:53.5]} 1... c5 {[%clk 0:04:59.1]} 2. Nf3 {[%clk 0:04:52.2]}
2... d6 {[%clk 0:04:58.6]} 3. c3 {[%clk 0:04:48.9]} 3... Nf6 {[%clk 0:04:57.3]}
4. h3 {[%clk 0:04:46.9]} 4... g6 {[%clk 0:04:56.3]} 5. Bd3 {[%clk 0:04:44.1]}
5... Bg7 {[%clk 0:04:55.5]} 6. Bc2 {[%clk 0:04:42.8]} 6... O-O {[%clk
0:04:54.8]} 7. O-O {[%clk 0:04:06]} 7... e5 {[%clk 0:04:52.4]} 8. d4 {[%clk
0:04:03.1]} 8... exd4 {[%clk 0:04:51.4]} 9. cxd4 {[%clk 0:04:02.1]} 9... cxd4
{[%clk 0:04:51.3]} 10. Nxd4 {[%clk 0:04:00.6]} 10... Nc6 {[%clk 0:04:51.2]} 11.
Nxc6 {[%clk 0:03:58.7]} 11... bxc6 {[%clk 0:04:51.1]} 12. Nc3 {[%clk 0:03:57.5]}
12... d5 {[%clk 0:04:29.5]} 13. exd5 {[%clk 0:03:52.7]} 13... cxd5 {[%clk
0:04:29.4]} 14. Bg5 {[%clk 0:03:49.8]} 14... Be6 {[%clk 0:04:27.9]} 15. Nb5
{[%clk 0:03:39.2]} 15... h6 {[%clk 0:04:21.6]} 16. Be3 {[%clk 0:03:34.1]} 16...
Bd7 {[%clk 0:03:35.7]} 17. Nd4 {[%clk 0:03:32.5]} 17... Ne4 {[%clk 0:03:34.2]}
18. Bb3 {[%clk 0:03:28.5]} 18... Qa5 {[%clk 0:03:15.1]} 19. Rc1 {[%clk
0:03:13.6]} 19... Rac8 {[%clk 0:03:01]} 20. Qd3 {[%clk 0:03:07.8]} 20... Rxc1
{[%clk 0:02:35.2]} 21. Rxc1 {[%clk 0:03:04.9]} 21... Rc8 {[%clk 0:02:33.3]} 22.
Rxc8+ {[%clk 0:03:02.1]} 22... Bxc8 {[%clk 0:02:33.2]} 23. Qb5 {[%clk
0:02:53.2]} 23... Qe1+ {[%clk 0:02:04.8]} 24. Qf1 {[%clk 0:02:50.8]} 24... Qxf1+
{[%clk 0:01:53.3]} 25. Kxf1 {[%clk 0:02:49.5]} 25... Nd2+ {[%clk 0:01:52.9]} 26.
Bxd2 {[%clk 0:02:42.7]} 26... Bxd4 {[%clk 0:01:51.2]} 27. Bc3 {[%clk 0:02:39.1]}
27... Bxc3 {[%clk 0:01:41.6]} 28. bxc3 {[%clk 0:02:37.9]} 28... Be6 {[%clk
0:01:29.7]} 29. Ke2 {[%clk 0:02:36.8]} 29... Kf8 {[%clk 0:01:29]} 30. Ke3 {[%clk
0:02:35.8]} 30... Ke7 {[%clk 0:01:26.6]} 31. Kd4 {[%clk 0:02:34]} 31... Kd6
{[%clk 0:01:25.6]} 32. f4 {[%clk 0:02:19.4]} 32... h5 {[%clk 0:01:20.4]} 33. h4
{[%clk 0:02:14]} 33... f6 {[%clk 0:01:09.3]} 34. Bc2 {[%clk 0:02:12.5]} 34...
Bf5 {[%clk 0:01:08.3]} 35. Bxf5 {[%clk 0:02:06.7]} 35... gxf5 {[%clk 0:01:08.2]}
36. c4 {[%clk 0:02:05.2]} 36... dxc4 {[%clk 0:00:55.1]} 37. Kxc4 {[%clk
0:02:05.1]} 37... a6 {[%clk 0:00:39.8]} 38. a4 {[%clk 0:02:00.6]} 38... Kc6
{[%clk 0:00:38.3]} 39. Kb4 {[%clk 0:01:58.5]} 39... Kb6 {[%clk 0:00:28.7]} 40.
a5+ {[%clk 0:01:46.8]} 40... Kc6 {[%clk 0:00:28]} 41. Kc4 {[%clk 0:01:40.9]}
41... Kd6 {[%clk 0:00:26.9]} 42. Kd4 {[%clk 0:01:25.3]} 42... Kc6 {[%clk
0:00:26.1]} 43. Kc4 {[%clk 0:01:23.9]} 43... Kd6 {[%clk 0:00:25.4]} 44. Kd4
{[%clk 0:01:23]} 44... Kc6 {[%clk 0:00:24.8]} 45. Kc4 {[%clk 0:01:22.4]} 1/2-1/2

[Event "Live Chess"]
[Site "Chess.com"]
[Date "2024.06.02"]
[Round "-"]
[White "GwaryTek"]
[Black "Andriy_Yaremovych"]
[Result "0-1"]
[WhiteElo "1828"]
[BlackElo "1621"]
[TimeControl "300"]
[EndTime "4:35:19 PDT"]
[Termination "Andriy_Yaremovych won on time"]

1. d4 {[%clk 0:04:53]} 1... b6 {[%clk 0:04:59.9]} 2. c4 {[%clk 0:04:50.3]} 2...
Bb7 {[%clk 0:04:59.8]} 3. Nc3 {[%clk 0:04:49.4]} 3... Nf6 {[%clk 0:04:56.4]} 4.
Nf3 {[%clk 0:04:48]} 4... e6 {[%clk 0:04:53.4]} 5. Bg5 {[%clk 0:04:44.5]} 5...
h6 {[%clk 0:04:51.9]} 6. Bh4 {[%clk 0:04:40.7]} 6... Bb4 {[%clk 0:04:50.1]} 7.
e3 {[%clk 0:04:34.4]} 7... Bxc3+ {[%clk 0:04:50]} 8. bxc3 {[%clk 0:04:32.9]}
8... g5 {[%clk 0:04:49.6]} 9. Bg3 {[%clk 0:04:32]} 9... d6 {[%clk 0:04:49.1]}
10. Bd3 {[%clk 0:04:29.9]} 10... Nbd7 {[%clk 0:04:48.1]} 11. O-O {[%clk
0:04:28.2]} 11... Qe7 {[%clk 0:04:47.3]} 12. Nd2 {[%clk 0:04:27.5]} 12... O-O-O
{[%clk 0:04:46.3]} 13. a4 {[%clk 0:04:25.8]} 13... Ne8 {[%clk 0:04:45.1]} 14. a5
{[%clk 0:04:24.3]} 14... f5 {[%clk 0:04:44]} 15. axb6 {[%clk 0:04:23]} 15...
axb6 {[%clk 0:04:40.3]} 16. Ra7 {[%clk 0:04:20.9]} 16... Nb8 {[%clk 0:04:38.4]}
17. c5 {[%clk 0:04:02.8]} 17... dxc5 {[%clk 0:04:35.2]} 18. Qa4 {[%clk
0:03:44.1]} 18... Qd7 {[%clk 0:04:25.9]} 19. Bb5 {[%clk 0:03:38.1]} 19... Qd5
{[%clk 0:04:16.6]} 20. f3 {[%clk 0:02:42.9]} 20... cxd4 {[%clk 0:04:02.7]} 21.
cxd4 {[%clk 0:02:29.6]} 21... c6 {[%clk 0:03:59.9]} 22. Bc4 {[%clk 0:02:25.8]}
22... Qd7 {[%clk 0:03:54.7]} 23. Rb1 {[%clk 0:01:45.6]} 23... b5 {[%clk
0:03:52.6]} 24. Rxb7 {[%clk 0:01:05.6]} 24... Qxb7 {[%clk 0:03:49]} 25. Bxe6+
{[%clk 0:01:03]} 25... Nd7 {[%clk 0:03:46.8]} 26. Qa5 {[%clk 0:00:43.3]} 26...
Nc7 {[%clk 0:03:34]} 27. Nc4 {[%clk 0:00:36.3]} 27... Kb8 {[%clk 0:03:24.3]} 28.
Nd6 {[%clk 0:00:09.8]} 28... Qa7 {[%clk 0:03:18.6]} 0-1

[Event "Live Chess"]
[Site "Chess.com"]
[Date "2024.06.02"]
[Round "-"]
[White "Ferrarifan27"]
[Black "PureDashingOctopus"]
[Result "0-1"]
[WhiteElo "2167"]
[BlackElo "2275"]
[TimeControl "300"]
[EndTime "4:36:17 PDT"]
[Termination "PureDashingOctopus won by resignation"]

1. e4 {[%clk 0:04:54.4]} 1... c5 {[%clk 0:04:55.8]} 2. Nf3 {[%clk 0:04:52.9]}
2... d6 {[%clk 0:04:55.3]} 3. d4 {[%clk 0:04:51.6]} 3... cxd4 {[%clk 0:04:55.2]}
4. Nxd4 {[%clk 0:04:48.7]} 4... Nf6 {[%clk 0:04:54.7]} 5. Nc3 {[%clk 0:04:47.5]}
5... a6 {[%clk 0:04:54.3]} 6. Bg5 {[%clk 0:04:43.3]} 6... e6 {[%clk 0:04:52.5]}
7. f4 {[%clk 0:04:42]} 7... Be7 {[%clk 0:04:50.3]} 8. Qf3 {[%clk 0:04:34.8]}
8... Nbd7 {[%clk 0:04:48.1]} 9. O-O-O {[%clk 0:04:34.2]} 9... Qc7 {[%clk
0:04:46.9]} 10. g4 {[%clk 0:04:31.7]} 10... b5 {[%clk 0:04:45.3]} 11. a3 {[%clk
0:04:27.6]} 11... h6 {[%clk 0:04:40.4]} 12. Bxf6 {[%clk 0:04:26.4]} 12... Nxf6
{[%clk 0:04:39.1]} 13. h4 {[%clk 0:04:21.7]} 13... Bb7 {[%clk 0:04:33.7]} 14.
Bg2 {[%clk 0:04:19.5]} 14... O-O-O {[%clk 0:04:24]} 15. g5 {[%clk 0:04:15.4]}
15... hxg5 {[%clk 0:04:20.6]} 16. hxg5 {[%clk 0:04:15.3]} 16... Nd7 {[%clk
0:04:19.7]} 17. g6 {[%clk 0:03:50.7]} 17... Rxh1 {[%clk 0:03:17.5]} 18. Rxh1
{[%clk 0:03:47.4]} 18... Nf8 {[%clk 0:03:13.1]} 19. gxf7 {[%clk 0:03:43.1]}
19... Bf6 {[%clk 0:03:11.6]} 20. Nde2 {[%clk 0:03:20]} 20... Qxf7 {[%clk
0:03:03.3]} 21. Qf2 {[%clk 0:03:17.6]} 21... g5 {[%clk 0:02:53]} 22. fxg5 {[%clk
0:03:15.7]} 22... Bxg5+ {[%clk 0:02:49.9]} 23. Nf4 {[%clk 0:03:14.3]} 23...
Qxf4+ {[%clk 0:02:47.3]} 24. Qxf4 {[%clk 0:03:13.3]} 24... Bxf4+ {[%clk
0:02:47.2]} 25. Kb1 {[%clk 0:03:12.3]} 25... Be5 {[%clk 0:02:44.3]} 26. Ne2
{[%clk 0:03:07.5]} 26... Nd7 {[%clk 0:02:36.7]} 27. Rh6 {[%clk 0:02:48.1]} 27...
Rg8 {[%clk 0:02:27.6]} 28. Bh3 {[%clk 0:02:45.8]} 28... Bxe4 {[%clk 0:02:19.3]}
29. Bxe6 {[%clk 0:02:43.8]} 29... Rg2 {[%clk 0:02:16.1]} 30. Nf4 {[%clk
0:01:58.7]} 30... Bxf4 {[%clk 0:02:12.2]} 31. Rh8+ {[%clk 0:01:57.5]} 31... Kc7
{[%clk 0:02:09.3]} 32. Rh4 {[%clk 0:01:55.4]} 32... Bxc2+ {[%clk 0:02:07.1]} 33.
Ka2 {[%clk 0:01:53.9]} 33... Be5 {[%clk 0:02:06]} 34. a4 {[%clk 0:01:46.2]}
34... Bb3+ {[%clk 0:02:02.4]} 35. Bxb3 {[%clk 0:01:43.8]} 35... Rxb2+ {[%clk
0:02:00.3]} 36. Ka3 {[%clk 0:01:42.8]} 36... Nc5 {[%clk 0:01:58.2]} 37. Rh7+
{[%clk 0:01:40.2]} 37... Kc6 {[%clk 0:01:56.9]} 38. axb5+ {[%clk 0:01:37.6]}
38... axb5 {[%clk 0:01:54.8]} 39. Rh4 {[%clk 0:01:29.2]} 39... Rxb3+ {[%clk
0:01:47.9]} 40. Ka2 {[%clk 0:01:27.6]} 40... Rb2+ {[%clk 0:01:47.4]} 41. Ka3
{[%clk 0:01:25.8]} 41... b4+ {[%clk 0:01:46.7]} 42. Rxb4 {[%clk 0:01:24.8]}
42... Rxb4 {[%clk 0:01:44.5]} 43. Kxb4 {[%clk 0:01:24.7]} 43... Kd5 {[%clk
0:01:43.8]} 0-1

[Event "Live Chess"]
[Site "Chess.com"]
[Date "2024.06.02"]
[Round "-"]
[White "Grace6363"]
[Black "ogpin"]
[Result "0-1"]
[WhiteElo "1151"]
[BlackElo "2184"]
[TimeControl "300"]
[EndTime "4:36:29 PDT"]
[Termination "ogpin won on time"]

1. d4 {[%clk 0:04:57.3]} 1... e5 {[%clk 0:04:59.5]} 2. dxe5 {[%clk 0:04:56.3]}
2... d6 {[%clk 0:04:59]} 3. Nf3 {[%clk 0:04:54.5]} 3... Nc6 {[%clk 0:04:57]} 4.
e3 {[%clk 0:04:53.3]} 4... Bg4 {[%clk 0:04:56]} 5. h3 {[%clk 0:04:48.8]} 5...
Bh5 {[%clk 0:04:54.9]} 6. Bb5 {[%clk 0:04:46]} 6... dxe5 {[%clk 0:04:52.4]} 7.
Qxd8+ {[%clk 0:04:44.4]} 7... Rxd8 {[%clk 0:04:50.8]} 8. g4 {[%clk 0:04:34.1]}
8... Bg6 {[%clk 0:04:38.8]} 9. Nxe5 {[%clk 0:04:32.4]} 9... Be4 {[%clk
0:04:37.7]} 10. Bxc6+ {[%clk 0:04:23.1]} 10... bxc6 {[%clk 0:04:33.4]} 11. Rg1
{[%clk 0:04:09.4]} 11... f6 {[%clk 0:04:14.4]} 12. f3 {[%clk 0:04:05.8]} 12...
Bxc2 {[%clk 0:04:13.8]} 13. Nxc6 {[%clk 0:03:59.6]} 13... Rd1+ {[%clk
0:04:12.5]} 14. Kf2 {[%clk 0:03:57.7]} 14... Rxg1 {[%clk 0:04:12]} 15. Kxg1
{[%clk 0:03:56.9]} 15... Bc5 {[%clk 0:04:11.5]} 16. Nc3 {[%clk 0:03:38.3]} 16...
h5 {[%clk 0:04:08.6]} 17. Bd2 {[%clk 0:03:25.1]} 17... hxg4 {[%clk 0:04:06.6]}
18. fxg4 {[%clk 0:03:02.3]} 18... Rxh3 {[%clk 0:04:04]} 19. Kg2 {[%clk
0:02:55.7]} 19... Rh8 {[%clk 0:03:54]} 20. Rc1 {[%clk 0:02:48.9]} 20... Bg6
{[%clk 0:03:50]} 21. Na4 {[%clk 0:02:41.6]} 21... Bd6 {[%clk 0:03:48.4]} 22. Rh1
{[%clk 0:02:06.6]} 22... Rxh1 {[%clk 0:03:46.3]} 23. Kxh1 {[%clk 0:02:05.8]}
23... Ne7 {[%clk 0:03:46.2]} 24. Nxa7 {[%clk 0:01:51.1]} 24... Be4+ {[%clk
0:03:42.2]} 25. Kg1 {[%clk 0:01:46.7]} 25... Ng6 {[%clk 0:03:42.1]} 26. Be1
{[%clk 0:01:36.8]} 26... Ne5 {[%clk 0:03:40.2]} 27. Nb5 {[%clk 0:00:53.4]} 27...
Nf3+ {[%clk 0:03:31.1]} 28. Kf2 {[%clk 0:00:50.3]} 28... Bh2 {[%clk 0:03:27.3]}
29. Nac3 {[%clk 0:00:34.5]} 29... Bc6 {[%clk 0:03:22.8]} 30. Nd4 {[%clk
0:00:28.4]} 30... Nxd4 {[%clk 0:03:18.1]} 31. exd4 {[%clk 0:00:27.7]} 31... g6
{[%clk 0:03:13.6]} 32. Ne2 {[%clk 0:00:25.8]} 32... f5 {[%clk 0:03:10.6]} 33.
gxf5 {[%clk 0:00:24.8]} 33... gxf5 {[%clk 0:03:10.5]} 34. Ng3 {[%clk 0:00:24.1]}
34... f4 {[%clk 0:03:09.5]} 35. Nf5 {[%clk 0:00:21.1]} 35... Be4 {[%clk
0:03:07]} 36. Nh6 {[%clk 0:00:17.3]} 36... Bg3+ {[%clk 0:03:01.8]} 37. Kg1
{[%clk 0:00:15.4]} 37... Bxe1 {[%clk 0:03:00.6]} 38. Ng4 {[%clk 0:00:13.7]}
38... Ba8 {[%clk 0:02:54.5]} 39. Nf6+ {[%clk 0:00:13]} 39... Kf7 {[%clk
0:02:52.5]} 40. Ng4 {[%clk 0:00:12.3]} 40... f3 {[%clk 0:02:51.4]} 41. Kf1
{[%clk 0:00:11.6]} 41... Bg3 {[%clk 0:02:49.9]} 42. Nh6+ {[%clk 0:00:08.4]}
42... Kf8 {[%clk 0:02:47.6]} 43. Nf5 {[%clk 0:00:07.6]} 43... Bb7 {[%clk
0:02:45.9]} 44. Nxg3 {[%clk 0:00:06.8]} 44... Ke7 {[%clk 0:02:44]} 45. Kf2
{[%clk 0:00:06.6]} 45... Ke6 {[%clk 0:02:43.2]} 46. Ne4 {[%clk 0:00:06]} 46...
Bxe4 {[%clk 0:02:41.7]} 47. b3 {[%clk 0:00:04.7]} 47... Kd5 {[%clk 0:02:41.6]}
48. b4 {[%clk 0:00:03.8]} 48... Kxd4 {[%clk 0:02:41.5]} 49. a3 {[%clk 0:00:03]}
49... Kd5 {[%clk 0:02:39.9]} 50. a4 {[%clk 0:00:02.7]} 50... Kd4 {[%clk
0:02:39.8]} 51. b5 {[%clk 0:00:02.4]} 51... Kd5 {[%clk 0:02:39.7]} 52. a5 {[%clk
0:00:02.1]} 52... Ke5 {[%clk 0:02:39.6]} 53. b6 {[%clk 0:00:01.8]} 53... cxb6
{[%clk 0:02:37.6]} 54. a6 {[%clk 0:00:01.7]} 54... Ba8 {[%clk 0:02:36.7]} 55. a7
{[%clk 0:00:00.9]} 55... Kf4 {[%clk 0:02:35.9]} 0-1

[Event "Live Chess"]
[Site "Chess.com"]
[Date "2024.06.02"]
[Round "-"]
[White "booktrunk"]
[Black "blunderabit"]
[Result "0-1"]
[WhiteElo "1496"]
[BlackElo "1760"]
[TimeControl "300"]
[EndTime "4:36:31 PDT"]
[Termination "blunderabit won by resignation"]

1. d4 {[%clk 0:04:53.7]} 1... d5 {[%clk 0:04:57.3]} 2. Nc3 {[%clk 0:04:51.2]}
2... c6 {[%clk 0:04:53.8]} 3. e4 {[%clk 0:04:46.3]} 3... dxe4 {[%clk 0:04:49.6]}
4. Nxe4 {[%clk 0:04:44.6]} 4... Nf6 {[%clk 0:04:49.1]} 5. Nxf6+ {[%clk 0:04:43]}
5... exf6 {[%clk 0:04:48.3]} 6. Qe2+ {[%clk 0:04:42.1]} 6... Be7 {[%clk
0:04:45.6]} 7. Nf3 {[%clk 0:04:39.3]} 7... O-O {[%clk 0:04:42.3]} 8. Be3 {[%clk
0:04:38]} 8... Re8 {[%clk 0:04:37.5]} 9. O-O-O {[%clk 0:04:36.3]} 9... Be6
{[%clk 0:04:31.4]} 10. Kb1 {[%clk 0:04:34.1]} 10... Qa5 {[%clk 0:04:27]} 11. a3
{[%clk 0:04:27.8]} 11... b5 {[%clk 0:04:20.5]} 12. Qd2 {[%clk 0:04:25.5]} 12...
b4 {[%clk 0:04:07]} 13. c4 {[%clk 0:04:08.2]} 13... bxc3 {[%clk 0:03:57.6]} 14.
Qxc3 {[%clk 0:04:04.7]} 14... Qxc3 {[%clk 0:03:56]} 15. bxc3 {[%clk 0:04:01.8]}
15... Bxa3 {[%clk 0:03:55.3]} 16. Rd2 {[%clk 0:03:54.8]} 16... Nd7 {[%clk
0:03:52.5]} 17. Bf4 {[%clk 0:03:52.5]} 17... h5 {[%clk 0:03:44.4]} 18. c4 {[%clk
0:03:51.2]} 18... g5 {[%clk 0:03:40.7]} 19. Bd6 {[%clk 0:03:49.2]} 19... Bxd6
{[%clk 0:03:37.5]} 20. c5 {[%clk 0:03:47.6]} 20... Bf5+ {[%clk 0:03:35]} 21. Kb2
{[%clk 0:03:45.8]} 21... Rab8+ {[%clk 0:03:28]} 0-1

[Event "Live Chess"]
[Site "Chess.com"]
[Date "2024.06.02"]
[Round "-"]
[White "RG_ChessLegend"]
[Black "defenderalist"]
[Result "0-1"]
[WhiteElo "1509"]
[BlackElo "1533"]
[TimeControl "300"]
[EndTime "4:36:42 PDT"]
[Termination "defenderalist won by resignation"]

1. e4 {[%clk 0:04:58.2]} 1... c5 {[%clk 0:04:57.9]} 2. Nf3 {[%clk 0:04:57.3]}
2... d6 {[%clk 0:04:57.2]} 3. d4 {[%clk 0:04:56.3]} 3... cxd4 {[%clk 0:04:56.4]}
4. Nxd4 {[%clk 0:04:56.2]} 4... Nf6 {[%clk 0:04:55.5]} 5. Nc3 {[%clk 0:04:55.4]}
5... a6 {[%clk 0:04:55.3]} 6. Be3 {[%clk 0:04:54.6]} 6... g6 {[%clk 0:04:47.8]}
7. Bc4 {[%clk 0:04:53.3]} 7... Bg7 {[%clk 0:04:46.7]} 8. Bb3 {[%clk 0:04:52.2]}
8... b5 {[%clk 0:04:44.8]} 9. a3 {[%clk 0:04:50.3]} 9... Bb7 {[%clk 0:04:43.6]}
10. f3 {[%clk 0:04:48.3]} 10... O-O {[%clk 0:04:40.5]} 11. O-O {[%clk
0:04:47.1]} 11... Nbd7 {[%clk 0:04:31.6]} 12. Re1 {[%clk 0:04:43.2]} 12... Nc5
{[%clk 0:04:30.2]} 13. Nde2 {[%clk 0:04:35.4]} 13... Nxb3 {[%clk 0:04:28.8]} 14.
cxb3 {[%clk 0:04:35.3]} 14... Nd7 {[%clk 0:04:18]} 15. Ng3 {[%clk 0:04:33.6]}
15... Rc8 {[%clk 0:04:13.2]} 16. Rc1 {[%clk 0:04:31.7]} 16... Nc5 {[%clk
0:04:12]} 17. Bxc5 {[%clk 0:04:26.8]} 17... dxc5 {[%clk 0:04:11.9]} 18. Qe2
{[%clk 0:04:26.1]} 18... Qb6 {[%clk 0:03:55.6]} 19. Kh1 {[%clk 0:04:23.2]} 19...
c4 {[%clk 0:03:50.5]} 20. bxc4 {[%clk 0:04:21.2]} 20... Rxc4 {[%clk 0:03:48.6]}
21. Qe3 {[%clk 0:04:06.8]} 21... Bd4 {[%clk 0:03:40.8]} 22. Qe2 {[%clk
0:03:59.4]} 22... Bg7 {[%clk 0:03:38.6]} 23. Qe3 {[%clk 0:03:57.9]} 23... Qxe3
{[%clk 0:03:34.6]} 24. Rxe3 {[%clk 0:03:57.1]} 24... Bh6 {[%clk 0:03:33.4]} 25.
Ree1 {[%clk 0:03:49.4]} 25... Bxc1 {[%clk 0:03:31.8]} 26. Rxc1 {[%clk
0:03:49.3]} 26... Rd8 {[%clk 0:03:24.1]} 27. h3 {[%clk 0:03:47.4]} 27... Bc6
{[%clk 0:03:18.5]} 28. Nge2 {[%clk 0:03:44.7]} 28... a5 {[%clk 0:03:16.8]} 29.
Nf4 {[%clk 0:03:41]} 29... b4 {[%clk 0:03:10.3]} 30. axb4 {[%clk 0:03:40.1]}
30... axb4 {[%clk 0:03:09.3]} 31. Nce2 {[%clk 0:03:40]} 31... Rxc1+ {[%clk
0:03:07.1]} 32. Nxc1 {[%clk 0:03:39.9]} 32... Rd1+ {[%clk 0:03:05.5]} 0-1

[Event "Live Chess"]
[Site "Chess.com"]
[Date "2024.06.02"]
[Round "-"]
[White "Tilbs_12"]
[Black "JanMur7"]
[Result "0-1"]
[WhiteElo "1654"]
[BlackElo "2291"]
[TimeControl "300"]
[EndTime "4:36:46 PDT"]
[Termination "JanMur7 won by resignation"]

1. d4 {[%clk 0:04:55.6]} 1... Nf6 {[%clk 0:04:58.5]} 2. Nc3 {[%clk 0:04:54.4]}
2... d5 {[%clk 0:04:57]} 3. Bf4 {[%clk 0:04:52.9]} 3... e6 {[%clk 0:04:55]} 4.
e3 {[%clk 0:04:50.4]} 4... Be7 {[%clk 0:04:52.5]} 5. Nb5 {[%clk 0:04:49.3]} 5...
Na6 {[%clk 0:04:50.9]} 6. Nf3 {[%clk 0:04:47.6]} 6... O-O {[%clk 0:04:48.6]} 7.
c3 {[%clk 0:04:45.2]} 7... c6 {[%clk 0:04:43.3]} 8. Na3 {[%clk 0:04:44.1]} 8...
c5 {[%clk 0:04:41.7]} 9. Nb5 {[%clk 0:04:39.4]} 9... Bd7 {[%clk 0:04:31.3]} 10.
a4 {[%clk 0:04:37.8]} 10... Ne4 {[%clk 0:04:17.7]} 11. Bd3 {[%clk 0:04:25.4]}
11... cxd4 {[%clk 0:04:03.4]} 12. exd4 {[%clk 0:04:23.6]} 12... Bxb5 {[%clk
0:04:01.3]} 13. axb5 {[%clk 0:04:18.9]} 13... Nc7 {[%clk 0:03:55.5]} 14. b3
{[%clk 0:04:04.3]} 14... Bd6 {[%clk 0:03:47]} 15. Bxd6 {[%clk 0:03:41.5]} 15...
Nxd6 {[%clk 0:03:46.9]} 16. O-O {[%clk 0:03:39.4]} 16... Ncxb5 {[%clk
0:03:44.9]} 17. Qc2 {[%clk 0:03:36.4]} 17... h6 {[%clk 0:03:41.3]} 18. Ne5
{[%clk 0:03:33.5]} 18... Rc8 {[%clk 0:03:37.5]} 19. c4 {[%clk 0:03:30.9]} 19...
Nxd4 {[%clk 0:03:35.3]} 20. Qb2 {[%clk 0:03:25.7]} 20... N4f5 {[%clk 0:03:22.7]}
21. Rxa7 {[%clk 0:03:18]} 21... Qb6 {[%clk 0:03:18.1]} 22. Raa1 {[%clk
0:03:10.9]} 22... dxc4 {[%clk 0:03:16.1]} 23. Bxf5 {[%clk 0:02:56.8]} 23... Nxf5
{[%clk 0:03:13.8]} 24. Nd7 {[%clk 0:02:46.1]} 24... Qxb3 {[%clk 0:03:11]} 25.
Qxb3 {[%clk 0:02:43.9]} 25... cxb3 {[%clk 0:03:10.9]} 26. Nxf8 {[%clk
0:02:43.2]} 26... Kxf8 {[%clk 0:03:08.5]} 27. Rab1 {[%clk 0:02:42.6]} 27... Nd4
{[%clk 0:03:07.1]} 28. h3 {[%clk 0:02:33.4]} 28... Rc2 {[%clk 0:03:02.1]} 29.
Rfd1 {[%clk 0:02:22]} 29... Ne2+ {[%clk 0:03:00.7]} 30. Kf1 {[%clk 0:01:54.3]}
30... Nc3 {[%clk 0:02:58.7]} 31. Rd3 {[%clk 0:01:52.5]} 31... Nxb1 {[%clk
0:02:56.4]} 32. Rxb3 {[%clk 0:01:51.4]} 32... Nd2+ {[%clk 0:02:55.9]} 33. Ke1
{[%clk 0:01:50.3]} 33... Nxb3 {[%clk 0:02:55.8]} 0-1

[Event "Live Chess"]
[Site "Chess.com"]
[Date "2024.06.02"]
[Round "-"]
[White "LL220284LL"]
[Black "Duke_of_Bebington"]
[Result "1-0"]
[WhiteElo "2498"]
[BlackElo "1636"]
[TimeControl "300"]
[EndTime "4:37:04 PDT"]
[Termination "LL220284LL won by checkmate"]

1. e3 {[%clk 0:04:56.4]} 1... d5 {[%clk 0:04:57.8]} 2. b3 {[%clk 0:04:55.2]}
2... e5 {[%clk 0:04:56.1]} 3. Bb2 {[%clk 0:04:54.1]} 3... Bd6 {[%clk 0:04:54.8]}
4. Nf3 {[%clk 0:04:53.4]} 4... f6 {[%clk 0:04:51.1]} 5. d3 {[%clk 0:04:51.8]}
5... Be6 {[%clk 0:04:49.2]} 6. g3 {[%clk 0:04:51]} 6... Qd7 {[%clk 0:04:48.2]}
7. Nbd2 {[%clk 0:04:48.5]} 7... Nc6 {[%clk 0:04:47.3]} 8. Qe2 {[%clk 0:04:46.6]}
8... O-O-O {[%clk 0:04:45.6]} 9. O-O-O {[%clk 0:04:44.6]} 9... Nge7 {[%clk
0:04:40]} 10. Kb1 {[%clk 0:04:43.7]} 10... a5 {[%clk 0:04:38.7]} 11. h3 {[%clk
0:04:42]} 11... Nb4 {[%clk 0:04:20.2]} 12. Bg2 {[%clk 0:04:36.3]} 12... Qc6
{[%clk 0:04:12.6]} 13. Ne1 {[%clk 0:04:31.7]} 13... Qa6 {[%clk 0:04:05.1]} 14.
a3 {[%clk 0:04:22.2]} 14... Nbc6 {[%clk 0:04:03.2]} 15. c4 {[%clk 0:04:21.4]}
15... dxc4 {[%clk 0:03:36.2]} 16. dxc4 {[%clk 0:04:13.4]} 16... Bf5+ {[%clk
0:03:21]} 17. e4 {[%clk 0:04:03.8]} 17... Be6 {[%clk 0:03:16.4]} 18. Nc2 {[%clk
0:04:02.7]} 18... Bc5 {[%clk 0:03:14.5]} 19. Nf3 {[%clk 0:03:54.4]} 19... Nd4
{[%clk 0:03:04.1]} 20. Ncxd4 {[%clk 0:03:41]} 20... exd4 {[%clk 0:03:01]} 21.
Nxd4 {[%clk 0:03:37.2]} 21... Bxd4 {[%clk 0:02:52.8]} 22. Bxd4 {[%clk
0:03:35.8]} 22... Nc6 {[%clk 0:02:51.6]} 23. Bb2 {[%clk 0:03:29.2]} 23... a4
{[%clk 0:02:48.9]} 24. e5 {[%clk 0:03:19.6]} 24... f5 {[%clk 0:02:23.5]} 25. Qe3
{[%clk 0:02:59.6]} 25... axb3 {[%clk 0:02:19.1]} 26. Qxb3 {[%clk 0:02:54.2]}
26... Bxc4 {[%clk 0:02:15]} 27. Qc3 {[%clk 0:02:51.7]} 27... Bd3+ {[%clk
0:02:00.8]} 28. Ka1 {[%clk 0:02:46.8]} 28... Rhe8 {[%clk 0:01:40.8]} 29. Bxc6
{[%clk 0:02:41.3]} 29... bxc6 {[%clk 0:01:39.4]} 30. Rhe1 {[%clk 0:02:34.1]}
30... Be4 {[%clk 0:01:24.4]} 31. e6 {[%clk 0:02:06]} 31... Re7 {[%clk
0:01:04.6]} 32. Rxd8+ {[%clk 0:01:56.1]} 32... Kxd8 {[%clk 0:01:04.5]} 33. Rd1+
{[%clk 0:01:50.4]} 33... Ke8 {[%clk 0:01:03.3]} 34. g4 {[%clk 0:01:04.6]} 34...
g6 {[%clk 0:00:55.8]} 35. Qh8# {[%clk 0:01:01.7]} 1-0